fUST/lending_fUST_20240705
["ID","MTS","AMOUNT","RATE_DAILY","PERIOD"]
[331196655,1720130006326,565.7116958,9.999e-05,2]
[331196657,1720130007041,525.021528,9.999e-05,2]
[331196658,1720130009430,303.28784189,9.999e-05,2]
[331196659,1720130011988,154.83742071,9.999e-05,2]
[331196660,1720130016867,154.83742071,9.999e-05,2]
[331196661,1720130018065,16238.83627548,0.00010959,2]
[331196663,1720130020994,319.53677074,9.999e-05,2]
[331196664,1720130024208,209.11287229,9.999e-05,2]
[331196665,1720130024532,155.24801441,9.999e-05,2]
[331196666,1720130025686,154.83742071,0.00010959,2]
[331196667,1720130029263,155.55411252,9.999e-05,2]
[331196668,1720130029675,154.83742071,9.999e-05,2]
[331196669,1720130029933,207.45524428,9.999e-05,2]
[331196670,1720130031986,2101.43499469,0.00010959,2]
[331196671,1720130034899,272.31604282,9.999e-05,2]
[331196672,1720130035598,155.02908324,9.999e-05,2]
[331196673,1720130038331,161.74783087,0.00029665,30]
[331196674,1720130039086,161.74783087,0.00029665,30]
[331196675,1720130039624,161.74783087,0.00029665,30]
[331196676,1720130039696,1071.16044479,9.999e-05,2]
[331196677,1720130040118,161.74783087,0.00029665,30]
[331196679,1720130040596,159.95439401,9.999e-05,2]
[331196680,1720130040706,161.74783087,0.00029665,30]
[331196681,1720130041244,154.83742071,9.999e-05,2]
[331196682,1720130041303,161.74783087,0.00029665,30]
[331196683,1720130041886,161.74783088,0.00029665,30]
[331196684,1720130044304,908.33583081,9.999e-05,2]
[331196685,1720130057134,292.51442822,9.999e-05,2]
[331196686,1720130057465,724.71412204,9.999e-05,2]
[331196687,1720130059822,154.83742071,9.999e-05,2]
[331196688,1720130059981,212.96486258,9.999e-05,2]
[331196689,1720130060183,492.19766955,9.999e-05,2]
[331196691,1720130066065,236.24555579,9.999e-05,2]
[331196692,1720130069088,529.64043395,9.999e-05,2]
[331196693,1720130083523,517.68163433,9.999e-05,2]
[331196694,1720130085618,597.95617303,9.999e-05,2]
[331196695,1720130088338,203.23522038,9.999e-05,2]
[331196696,1720130090548,364.07024499,9.999e-05,2]
[331196698,1720130099492,173.20012154,9.999e-05,2]
[331196699,1720130100045,154.83742071,9.999e-05,2]
[331196700,1720130105995,179.81564254,9.999e-05,2]
[331196701,1720130107068,16238.83627548,9.999e-05,2]
[331196702,1720130107340,843.93968101,9.999e-05,2]
[331196703,1720130108737,219.72958991,9.999e-05,2]
[331196704,1720130115688,154.83742071,9.999e-05,2]
[331196705,1720130115924,154.86836189,9.999e-05,2]
[331196706,1720130117134,243.63904316,9.999e-05,2]
[331196707,1720130117987,199.83014591,9.999e-05,2]
[331196708,1720130124016,2100.41510113,9.999e-05,2]
[331196709,1720130125056,413.87220254,9.999e-05,2]
[331196710,1720130126049,525.021528,9.999e-05,2]
[331196711,1720130126290,155.55411252,9.999e-05,2]
[331196712,1720130128687,1071.16044479,9.999e-05,2]
[331196713,1720130128930,230.10481129,9.999e-05,2]
[331196714,1720130129073,309.61295905,9.999e-05,2]
[331196715,1720130138950,934.35217097,9.999e-05,2]
[331196716,1720130139298,908.33583081,9.999e-05,2]
[331196717,1720130140877,193.8490748,9.999e-05,2]
[331196718,1720130144607,280.14005231,9.999e-05,2]
[331196719,1720130144793,661.12832609,9.999e-05,2]
[331196720,1720130145687,154.83742071,9.999e-05,2]
[331196722,1720130157123,212.96486258,9.999e-05,2]
[331196723,1720130168141,154.86836189,9.999e-05,2]
[331196724,1720130170138,292.51442822,9.999e-05,2]
[331196725,1720130170661,155.37362925,9.999e-05,2]
[331196726,1720130171230,182.5470397,9.999e-05,2]
[331196727,1720130177114,154.83742071,9.999e-05,2]
[331196728,1720130181734,309.6439095,9.999e-05,2]
[331196729,1720130184916,523.5184986,9.999e-05,2]
[331196730,1720130187967,403.28846454,9.999e-05,2]
[331196731,1720130189481,402.16827863,9.999e-05,2]
[331196732,1720130189546,176.97424414,9.999e-05,2]
[331196733,1720130196226,196.49243669,9.999e-05,2]
[331196734,1720130200132,292.51442822,9.999e-05,2]
[331196735,1720130202954,403.28846454,9.999e-05,2]
[331196736,1720130206739,154.86836189,9.999e-05,2]
[331196737,1720130207593,529.23697465,9.999e-05,2]
[331196738,1720130210250,155.80568734,0.0001,2]
[331196739,1720130212464,724.89345985,9.999e-05,2]
[331196740,1720130212578,15069.12062931,9.999e-05,2]
[331196741,1720130212924,154.83742071,9.999e-05,2]
[331196742,1720130213337,476.07106993,9.999e-05,2]
[331196743,1720130213530,195.74610265,9.999e-05,2]
[331196744,1720130215254,154.83742071,9.999e-05,2]
[331196745,1720130219094,458.54129141,9.999e-05,2]
[331196746,1720130222143,3642.48546166,9.999e-05,2]
[331196747,1720130225493,2101.43499469,9.999e-05,2]
[331196748,1720130227261,155.43385365,9.999e-05,2]
[331196749,1720130228039,300.38885633,9.999e-05,2]
[331196750,1720130231117,265.62063165,9.999e-05,2]
[331196751,1720130232001,179.81564254,9.999e-05,2]
[331196752,1720130235701,1071.16044479,9.999e-05,2]
[331196754,1720130239134,212.96486258,9.999e-05,2]
[331196755,1720130240935,492.35010559,9.999e-05,2]
[331196756,1720130249423,523.15977696,9.999e-05,2]
[331196757,1720130254432,932.19918975,9.999e-05,2]
[331196759,1720130260308,908.33583081,9.999e-05,2]
[331196761,1720130278226,182.5470397,9.999e-05,2]
[331196762,1720130280052,374.52908603,9.999e-05,2]
[331196764,1720130289984,157.2682199,9.999e-05,2]
[331196766,1720130293121,290.78564581,9.999e-05,2]
[331196767,1720130297945,277.93186095,9.999e-05,2]
[331196768,1720130312479,724.89345985,9.999e-05,2]
[331196769,1720130320505,402.16827863,9.999e-05,2]
[331196770,1720130320815,195.74610265,9.999e-05,2]
[331196771,1720130326279,243.90157924,9.999e-05,2]
[331196772,1720130326597,529.4387043,9.999e-05,2]
[331196773,1720130326996,402.98315814,9.999e-05,2]
[331196774,1720130334642,212.96486258,9.999e-05,2]
[331196775,1720130334778,878.50675087,9.999e-05,2]
[331196776,1720130335015,225.98971699,9.999e-05,2]
[331196777,1720130337496,899.83238775,9.999e-05,2]
[331196778,1720130338549,374.52908603,9.999e-05,2]
[331196779,1720130340312,908.33583081,9.999e-05,2]
[331196780,1720130345858,212.96486258,9.999e-05,2]
[331196781,1720130356995,402.16827863,9.999e-05,2]
[331196782,1720130358935,523.5184986,9.999e-05,2]
[331196783,1720130359452,395.42230767,9.999e-05,2]
[331196786,1720130371242,286.77263575,9.999e-05,2]
[331196787,1720130380230,182.59092653,9.999e-05,2]
[331196788,1720130397620,440.38203034,9.999e-05,2]
[331196789,1720130400498,724.89345985,9.999e-05,2]
[331196791,1720130411615,421.97314439,9.999e-05,2]
[331196793,1720130427540,194.916634,9.999e-05,2]
[331196794,1720130435242,181.92391132,9.999e-05,2]
[331196795,1720130447845,310.28200854,9.999e-05,2]
[331196796,1720130449555,291.25060792,9.999e-05,2]
[331196799,1720130464465,539.38096771,9.999e-05,2]
[331196801,1720130471440,523.5184986,9.999e-05,2]
[331196802,1720130473229,182.59092653,9.999e-05,2]
[331196803,1720130476248,285.98364626,9.999e-05,2]
[331196804,1720130505489,246.9218225,9.999e-05,2]
[331196805,1720130514824,661.66867911,9.999e-05,2]
[331196808,1720130564457,523.5184986,9.999e-05,2]
[331196811,1720130588279,262.75973505,9.999e-05,2]
[331196812,1720130617338,806.24931448,9.999e-05,2]
[331196813,1720130634953,491.33508365,9.999e-05,2]
[331196814,1720130642728,155.00833792,0.00029626,30]
[331196815,1720130643524,155.00833792,0.00029626,30]
[331196816,1720130644287,155.00833792,0.00029626,30]
[331196817,1720130645154,155.00833792,0.00029626,30]
[331196818,1720130646006,155.00833792,0.0002963,30]
[331196819,1720130646778,155.00833785,0.0002963,30]
[331196820,1720130653454,522.80105532,9.999e-05,2]
[331196822,1720130744172,-15115.98986122,0.00011357,2]
[331196828,1720130816331,250.0,0.00011255,2]
[331196830,1720130868594,374.10478077,9.999e-05,2]
[331196832,1720130913485,158.97374278,0.00011255,2]
[331196836,1720130968988,151.11175224,0.00011256,2]
[331196838,1720130998406,-300.0,0.00011356,2]
[331196839,1720130998440,-523.57889374,0.00011357,2]
[331196840,1720130998483,-457.3508253,0.00011357,2]
[331196841,1720130998529,-823.57889374,0.00011357,2]
[331196872,1720131034981,-3848.01,0.00011357,2]
[331196873,1720131034993,-4131.491526,0.00011357,2]
[331196874,1720131035003,-188.5039329,0.00011515,2]
[331196875,1720131035012,-257.5787604,0.00011619,2]
[331196876,1720131035021,-701.9240243,0.00011859,2]
[331196877,1720131035031,-1170.25635638,0.00013598,2]
[331196878,1720131035041,-3883.39352014,0.00013598,2]
[331196879,1720131035050,-1396.97461498,0.00013688,2]
[331196881,1720131035062,-1197.93360822,0.00013688,2]
[331196883,1720131035071,-500.0,0.00013698,2]
[331196885,1720131035081,-123.27279007,0.00013698,2]
[331196887,1720131035092,-376.72720993,0.00013698,2]
[331196889,1720131035101,-500.0,0.00013698,2]
[331196891,1720131035111,-516.5611686,0.00013698,2]
[331196892,1720131035120,-500.0,0.00013698,2]
[331196894,1720131035129,-338.90318307,0.00013698,2]
[331196896,1720131035140,-161.09681693,0.00013698,2]
[331196898,1720131035149,-500.0,0.00013698,2]
[331196900,1720131035160,-500.0,0.00013698,2]
[331196902,1720131035169,-208.96178938,0.00013698,2]
[331196904,1720131035181,-291.03821062,0.00013698,2]
[331196906,1720131035190,-500.0,0.00013698,2]
[331196907,1720131035199,-218.30427205,0.00013698,2]
[331196962,1720131038599,-281.69572795,0.00013698,2]
[331196963,1720131038609,-500.0,0.00013698,2]
[331196965,1720131038619,-500.0,0.00013698,2]
[331196967,1720131038628,-500.0,0.00013698,2]
[331196968,1720131038638,-500.0,0.00013698,2]
[331196969,1720131038648,-503.94127817,0.00013698,2]
[331196970,1720131038658,-500.0,0.00013698,2]
[331196971,1720131038668,-500.0,0.00013698,2]
[331196972,1720131038678,-500.0,0.00013698,2]
[331196973,1720131038688,-500.0,0.00013698,2]
[331196974,1720131038697,-500.0,0.00013698,2]
[331196975,1720131038707,-518.66411697,0.00013698,2]
[331196976,1720131038716,-500.0,0.00013698,2]
[331196977,1720131038726,-500.0,0.00013698,2]
[331196978,1720131038735,-500.0,0.00013698,2]
[331196979,1720131038744,-500.0,0.00013698,2]
[331196980,1720131038753,-500.0,0.00013698,2]
[331196981,1720131038763,-505.08710568,0.00013698,2]
[331196982,1720131038773,-500.0,0.00013698,2]
[331196983,1720131038782,-502.5492614,0.00013698,2]
[331196984,1720131038792,-500.0,0.00013698,2]
[331196985,1720131038801,-500.0,0.00013698,2]
[331196986,1720131038810,-500.0,0.00013698,2]
[331196987,1720131038820,-500.0,0.00013698,2]
[331196989,1720131038829,-518.03338877,0.00013698,2]
[331196992,1720131038839,-500.0,0.00013698,2]
[331196993,1720131038848,-500.0,0.00013698,2]
[331196994,1720131038858,-500.0,0.00013698,2]
[331196995,1720131038867,-500.0,0.00013698,2]
[331196996,1720131038877,-500.0,0.00013698,2]
[331196997,1720131038887,-500.0,0.00013698,2]
[331196998,1720131038897,-500.0,0.00013698,2]
[331196999,1720131038906,-513.70484578,0.00013698,2]
[331197000,1720131038915,-502.81978746,0.00013698,2]
[331197001,1720131038925,-500.0,0.00013698,2]
[331197002,1720131038945,-500.0,0.00013698,2]
[331197003,1720131038955,-513.40710784,0.00013698,2]
[331197004,1720131038965,-500.0,0.00013698,2]
[331197005,1720131038974,-500.0,0.00013698,2]
[331197006,1720131038984,-500.0,0.00013698,2]
[331197007,1720131038994,-500.0,0.00013698,2]
[331197008,1720131039004,-500.0,0.00013698,2]
[331197009,1720131039015,-500.0,0.00013698,2]
[331197010,1720131039025,-500.0,0.00013698,2]
[331197011,1720131039035,-500.0,0.00013698,2]
[331197012,1720131039046,-500.0,0.00013698,2]
[331197013,1720131039056,-510.12572838,0.00013698,2]
[331197014,1720131039067,-500.0,0.00013698,2]
[331197015,1720131039077,-500.0,0.00013698,2]
[331197016,1720131039087,-500.0,0.00013698,2]
[331197017,1720131039097,-500.0,0.00013698,2]
[331197018,1720131039107,-500.0,0.00013698,2]
[331197019,1720131039118,-337.9361271,0.00013698,2]
[331197020,1720131039128,-500.0,0.00013698,2]
[331197021,1720131039139,-500.0,0.00013698,2]
[331197022,1720131039149,-500.0,0.00013698,2]
[331197023,1720131039162,-500.0,0.00013698,2]
[331197024,1720131039172,-500.0,0.00013698,2]
[331197025,1720131039183,-500.0,0.00013698,2]
[331197026,1720131039193,-500.0,0.00013698,2]
[331197027,1720131039204,-501.66297708,0.00013698,2]
[331197028,1720131039214,-500.0,0.00013698,2]
[331197029,1720131039225,-500.0,0.00013698,2]
[331197030,1720131039236,-500.0,0.00013698,2]
[331197031,1720131039246,-500.0,0.00013698,2]
[331197032,1720131039256,-500.0,0.00013698,2]
[331197033,1720131039266,-500.0,0.00013698,2]
[331197034,1720131039276,-500.0,0.00013698,2]
[331197035,1720131039286,-500.0,0.00013698,2]
[331197036,1720131039296,-500.0,0.00013698,2]
[331197037,1720131039307,-500.0,0.00013698,2]
[331197038,1720131039316,-500.0,0.00013698,2]
[331197039,1720131039326,-500.0,0.00013698,2]
[331197040,1720131039337,-500.0,0.00013698,2]
[331197041,1720131039347,-500.0,0.00013698,2]
[331197042,1720131039357,-1046.54093284,0.00013698,2]
[331197043,1720131039367,-500.0,0.00013698,2]
[331197044,1720131039376,-500.0,0.00013698,2]
[331197045,1720131039386,-500.0,0.00013698,2]
[331197046,1720131039396,-500.0,0.00013698,2]
[331197047,1720131039406,-500.0,0.00013698,2]
[331197048,1720131039416,-500.0,0.00013698,2]
[331197049,1720131039426,-184.24069671,0.00013698,2]
[331197050,1720131039435,-500.0,0.00013698,2]
[331197051,1720131039446,-500.0,0.00013698,2]
[331197052,1720131039460,-547.91572938,0.00013698,2]
[331197053,1720131039470,-500.0,0.00013698,2]
[331197054,1720131039480,-500.0,0.00013698,2]
[331197055,1720131039489,-826.72,0.00013698,2]
[331197056,1720131039499,-500.0,0.00013698,2]
[331197057,1720131039509,-500.0,0.00013698,2]
[331197058,1720131039519,-500.0,0.00013698,2]
[331197059,1720131039529,-500.0,0.00013698,2]
[331197060,1720131039539,-298.12313667,0.00013698,2]
[331197061,1720131039549,-500.0,0.00013698,2]
[331197062,1720131039563,-500.0,0.00013698,2]
[331197063,1720131039575,-590.67786974,0.00013698,2]
[331197064,1720131039585,-500.0,0.00013698,2]
[331197065,1720131039595,-431.02858379,0.00013698,2]
[331197066,1720131039605,-500.0,0.00013698,2]
[331197067,1720131039615,-500.0,0.00013698,2]
[331197068,1720131039624,-500.0,0.00013698,2]
[331197069,1720131039635,-500.0,0.00013698,2]
[331197070,1720131039647,-500.0,0.00013698,2]
[331197071,1720131039657,-548.75891172,0.00013698,2]
[331197072,1720131039668,-500.0,0.00013698,2]
[331197073,1720131039678,-500.0,0.00013698,2]
[331197074,1720131039688,-500.0,0.00013698,2]
[331197075,1720131039697,-500.0,0.00013698,2]
[331197076,1720131039707,-500.0,0.00013698,2]
[331197077,1720131039717,-524.48,0.00013698,2]
[331197078,1720131039726,-500.0,0.00013698,2]
[331197079,1720131039736,-500.0,0.00013698,2]
[331197080,1720131039747,-500.0,0.00013698,2]
[331197081,1720131039756,-500.0,0.00013698,2]
[331197082,1720131039767,-500.0,0.00013698,2]
[331197083,1720131039776,-641.01257194,0.00013698,2]
[331197084,1720131039787,-500.0,0.00013698,2]
[331197085,1720131039797,-500.0,0.00013698,2]
[331197086,1720131039807,-500.0,0.00013698,2]
[331197087,1720131039817,-568.54,0.00013698,2]
[331197088,1720131039827,-500.0,0.00013698,2]
[331197089,1720131039836,-500.0,0.00013698,2]
[331197090,1720131039846,-500.0,0.00013698,2]
[331197091,1720131039856,-167.74705631,0.00013698,2]
[331197092,1720131039866,-500.0,0.00013698,2]
[331197093,1720131039875,-500.0,0.00013698,2]
[331197094,1720131039884,-500.0,0.00013698,2]
[331197095,1720131039894,-500.0,0.00013698,2]
[331197096,1720131039904,-500.0,0.00013698,2]
[331197097,1720131039913,-500.0,0.00013698,2]
[331197098,1720131039922,-500.0,0.00013698,2]
[331197099,1720131039932,-500.0,0.00013698,2]
[331197100,1720131039941,-500.0,0.00013698,2]
[331197101,1720131039951,-500.0,0.00013698,2]
[331197102,1720131039961,-457.69120518,0.00013698,2]
[331197103,1720131039970,-503.02566622,0.00013698,2]
[331197105,1720131040105,-500.0,0.00013698,2]
[331197106,1720131040115,-500.0,0.00013698,2]
[331197107,1720131040124,-500.0,0.00013698,2]
[331197108,1720131040134,-500.0,0.00013698,2]
[331197109,1720131040143,-510.3034169,0.00013698,2]
[331197110,1720131040152,-500.0,0.00013698,2]
[331197111,1720131040162,-500.0,0.00013698,2]
[331197112,1720131040171,-500.0,0.00013698,2]
[331197113,1720131040181,-500.0,0.00013698,2]
[331197114,1720131040190,-500.0,0.00013698,2]
[331197115,1720131040200,-504.08202438,0.00013698,2]
[331197116,1720131040210,-500.0,0.00013698,2]
[331197117,1720131040220,-500.0,0.00013698,2]
[331197118,1720131040229,-500.0,0.00013698,2]
[331197119,1720131040239,-500.0,0.00013698,2]
[331197120,1720131040248,-500.0,0.00013698,2]
[331197121,1720131040257,-500.0,0.00013698,2]
[331197124,1720131040267,-500.0,0.00013698,2]
[331197126,1720131040276,-500.0,0.00013698,2]
[331197127,1720131040286,-500.0,0.00013698,2]
[331197128,1720131040295,-500.0,0.00013698,2]
[331197129,1720131040306,-500.0,0.00013698,2]
[331197130,1720131040315,-501.10726315,0.00013698,2]
[331197131,1720131040324,-501.07835622,0.00013698,2]
[331197132,1720131040333,-500.0,0.00013698,2]
[331197133,1720131040343,-500.0,0.00013698,2]
[331197134,1720131040352,-497.93600248,0.00013698,2]
[331197135,1720131040361,-501.83450842,0.00013698,2]
[331197136,1720131040370,-507.03036691,0.00013698,2]
[331197137,1720131040379,-500.0,0.00013698,2]
[331197138,1720131040388,-500.0,0.00013698,2]
[331197139,1720131040398,-500.0,0.00013698,2]
[331197140,1720131040407,-500.0,0.00013698,2]
[331197141,1720131040416,-501.8330513,0.00013698,2]
[331197142,1720131040425,-500.0,0.00013698,2]
[331197143,1720131040434,-500.0,0.00013698,2]
[331197144,1720131040444,-500.0,0.00013698,2]
[331197145,1720131040454,-500.0,0.00013698,2]
[331197146,1720131040463,-500.0,0.00013698,2]
[331197148,1720131040472,-500.0,0.00013698,2]
[331197150,1720131040481,-500.0,0.00013698,2]
[331197152,1720131040491,-501.34344012,0.00013698,2]
[331197154,1720131040501,-500.0,0.00013698,2]
[331197155,1720131040510,-500.0,0.00013698,2]
[331197156,1720131040520,-500.0,0.00013698,2]
[331197157,1720131040530,-500.0,0.00013698,2]
[331197158,1720131040550,-500.91677921,0.00013698,2]
[331197159,1720131040570,-500.0,0.00013698,2]
[331197160,1720131040591,-500.0,0.00013698,2]
[331197161,1720131040617,-500.0,0.00013698,2]
[331197162,1720131040642,-500.0,0.00013698,2]
[331197163,1720131040669,-500.0,0.00013698,2]
[331197165,1720131040696,-500.97532239,0.00013698,2]
[331197167,1720131040726,-500.0,0.00013698,2]
[331197168,1720131040762,-500.0,0.00013698,2]
[331197170,1720131040788,-500.0,0.00013698,2]
[331197171,1720131040798,-500.0,0.00013698,2]
[331197172,1720131040807,-500.0,0.00013698,2]
[331197173,1720131040817,-500.0,0.00013698,2]
[331197174,1720131040827,-502.16022671,0.00013698,2]
[331197175,1720131040836,-500.0,0.00013698,2]
[331197176,1720131040846,-500.0,0.00013698,2]
[331197177,1720131040855,-543.14857738,0.00013698,2]
[331197178,1720131040864,-159.2769432,0.00013698,2]
[331197179,1720131040874,-500.0,0.00013698,2]
[331197180,1720131040883,-500.0,0.00013698,2]
[331197181,1720131040892,-500.0,0.00013698,2]
[331197183,1720131040902,-601.87869073,0.00013698,2]
[331197184,1720131040910,-500.0,0.00013698,2]
[331197186,1720131040920,-501.05769785,0.00013698,2]
[331197188,1720131040929,-500.0,0.00013698,2]
[331197190,1720131040938,-501.68662757,0.00013698,2]
[331197192,1720131040947,-500.0,0.00013698,2]
[331197193,1720131040957,-500.0,0.00013698,2]
[331197195,1720131040966,-500.0,0.00013698,2]
[331197197,1720131040975,-500.0,0.00013698,2]
[331197199,1720131040985,-500.0,0.00013698,2]
[331197200,1720131040994,-500.0,0.00013698,2]
[331197201,1720131041003,-500.0,0.00013698,2]
[331197202,1720131041012,-473.93873381,0.00013698,2]
[331197203,1720131041022,-500.0,0.00013698,2]
[331197204,1720131041031,-501.06,0.00013698,2]
[331197205,1720131041040,-500.0,0.00013698,2]
[331197206,1720131041049,-500.0,0.00013698,2]
[331197207,1720131041059,-500.0,0.00013698,2]
[331197208,1720131041069,-500.0,0.00013698,2]
[331197209,1720131041078,-500.0,0.00013698,2]
[331197210,1720131041088,-501.64471739,0.00013698,2]
[331197211,1720131041097,-500.0,0.00013698,2]
[331197212,1720131041106,-500.0,0.00013698,2]
[331197214,1720131041116,-500.0,0.00013698,2]
[331197216,1720131041125,-504.40219872,0.00013698,2]
[331197218,1720131041134,-500.0,0.00013698,2]
[331197220,1720131041144,-682.73,0.00013698,2]
[331197222,1720131041152,-500.0,0.00013698,2]
[331197224,1720131041164,-500.0,0.00013698,2]
[331197225,1720131041174,-500.0,0.00013698,2]
[331197226,1720131041183,-347.45257925,0.00013698,2]
[331197228,1720131041192,-500.0,0.00013698,2]
[331197230,1720131041202,-500.0,0.00013698,2]
[331197232,1720131041212,-500.0,0.00013698,2]
[331197234,1720131041222,-500.0,0.00013698,2]
[331197236,1720131041231,-500.0,0.00013698,2]
[331197238,1720131041240,-500.0,0.00013698,2]
[331197239,1720131041249,-500.0,0.00013698,2]
[331197240,1720131041258,-203.84353162,0.00013698,2]
[331197241,1720131041267,-500.0,0.00013698,2]
[331197242,1720131041278,-500.0,0.00013698,2]
[331197243,1720131041288,-500.0,0.00013698,2]
[331197244,1720131041298,-500.0,0.00013698,2]
[331197245,1720131041307,-500.0,0.00013698,2]
[331197246,1720131041316,-500.0,0.00013698,2]
[331197247,1720131041325,-500.0,0.00013698,2]
[331197248,1720131041335,-504.90985655,0.00013698,2]
[331197249,1720131041344,-931.89,0.00013698,2]
[331197250,1720131041353,-500.0,0.00013698,2]
[331197251,1720131041362,-500.0,0.00013698,2]
[331197252,1720131041371,-500.0,0.00013698,2]
[331197253,1720131041381,-500.0,0.00013698,2]
[331197254,1720131041390,-500.0,0.00013698,2]
[331197255,1720131041399,-500.0,0.00013698,2]
[331197256,1720131041408,-500.0,0.00013698,2]
[331197257,1720131041418,-500.0,0.00013698,2]
[331197258,1720131041427,-500.0,0.00013698,2]
[331197259,1720131041436,-362.64625009,0.00013698,2]
[331197260,1720131041445,-500.0,0.00013698,2]
[331197261,1720131041454,-500.0,0.00013698,2]
[331197262,1720131041463,-500.0,0.00013698,2]
[331197263,1720131041472,-500.0,0.00013698,2]
[331197264,1720131041481,-553.96648871,0.00013698,2]
[331197265,1720131041491,-500.0,0.00013698,2]
[331197266,1720131041500,-500.0,0.00013698,2]
[331197267,1720131041509,-500.0,0.00013698,2]
[331197268,1720131041518,-500.0,0.00013698,2]
[331197269,1720131041530,-500.0,0.00013698,2]
[331197270,1720131041539,-500.0,0.00013698,2]
[331197271,1720131041548,-500.0,0.00013698,2]
[331197272,1720131041562,-500.0,0.00013698,2]
[331197273,1720131041571,-500.0,0.00013698,2]
[331197274,1720131041580,-500.0,0.00013698,2]
[331197275,1720131041590,-500.0,0.00013698,2]
[331197276,1720131041600,-187.68651203,0.00013698,2]
[331197277,1720131041609,-500.0,0.00013698,2]
[331197278,1720131041618,-500.0,0.00013698,2]
[331197279,1720131041627,-500.0,0.00013698,2]
[331197280,1720131041638,-500.0,0.00013698,2]
[331197281,1720131041648,-504.73942185,0.00013698,2]
[331197282,1720131041657,-501.68919144,0.00013698,2]
[331197283,1720131041666,-500.0,0.00013698,2]
[331197284,1720131041676,-759.56,0.00013698,2]
[331197285,1720131041685,-500.0,0.00013698,2]
[331197286,1720131041695,-585.89,0.00013698,2]
[331197287,1720131041704,-500.0,0.00013698,2]
[331197288,1720131041714,-163.06139296,0.00013698,2]
[331197289,1720131041723,-950.69,0.00013698,2]
[331197290,1720131041733,-5834.67,0.00013698,2]
[331197291,1720131041742,-500.0,0.00013698,2]
[331197292,1720131041752,-500.0,0.00013698,2]
[331197293,1720131041761,-500.0,0.00013698,2]
[331197294,1720131041771,-500.0,0.00013698,2]
[331197295,1720131041780,-500.0,0.00013698,2]
[331197296,1720131041790,-500.0,0.00013698,2]
[331197297,1720131041798,-500.0,0.00013698,2]
[331197298,1720131041808,-500.0,0.00013698,2]
[331197299,1720131041817,-500.0,0.00013698,2]
[331197300,1720131041827,-500.0,0.00013698,2]
[331197301,1720131041837,-513.98,0.00013698,2]
[331197302,1720131041847,-500.0,0.00013698,2]
[331197303,1720131041856,-500.0,0.00013698,2]
[331197304,1720131041866,-1516.42,0.00013698,2]
[331197305,1720131041875,-510.21629738,0.00013698,2]
[331197306,1720131041885,-500.0,0.00013698,2]
[331197307,1720131041895,-500.0,0.00013698,2]
[331197308,1720131041904,-500.0,0.00013698,2]
[331197309,1720131041913,-500.0,0.00013698,2]
[331197310,1720131041922,-500.0,0.00013698,2]
[331197311,1720131041932,-1825.45,0.00013698,2]
[331197312,1720131041941,-500.0,0.00013698,2]
[331197313,1720131041951,-500.0,0.00013698,2]
[331197314,1720131041960,-500.0,0.00013698,2]
[331197315,1720131041969,-325.51625275,0.00013698,2]
[331197316,1720131041978,-500.0,0.00013698,2]
[331197317,1720131041987,-924.89,0.00013698,2]
[331197318,1720131041997,-500.0,0.00013698,2]
[331197319,1720131042006,-500.0,0.00013698,2]
[331197320,1720131042015,-484.57036608,0.00013698,2]
[331197321,1720131042026,-500.0,0.00013698,2]